Cogmind - Beta 10.2 @@@ ROGUE MODE // 2022.03.01 @ 03:32:41 Player: woegarden Result: Self-destructed Performance ------------- Evolutions (1) 500 Regions Visited (2) 400 Robots Destroyed (15) 75 Value Destroyed (444) 444 Prototype IDs (1) 20 Alien Tech Used (0) 0 Bonus (0) 0 TOTAL SCORE: 1439 Bonus ------- None Cogmind --------- Core Integrity 307/400 Matter 231/300 Energy 275/275 System Corruption 0% Temperature Cool (0) Movement Treading (160) Location -9/Materials Parts ------- > --- POWER (1) -------- Deuterium Engine > --- PROPULSION (4) --- Light Treads Light Treads Improved Aluminum Leg > --- UTILITY (2) ------ Small Storage Unit Sensor Array > --- WEAPON (2) ------- (None) > --- INVENTORY (6) ---- Deuterium Engine Light Nuclear Core Improved Terrain Scanner Peak State ------------ > --- POWER ------------ Light Nuclear Core > --- PROPULSION ------- Light Treads Aluminum Leg Aluminum Leg Aluminum Leg > --- UTILITY ---------- Small Storage Unit Sensor Array > --- WEAPON ----------- Electrolaser Grenade Launcher > --- INVENTORY -------- Light Ion Engine Deuterium Engine Deuterium Engine Light Treads Improved EM Shotgun Assault Rifle [Rating: 14] Favorites ----------- Power Ion Engine Engine Ion Engine Power Core Light Nuclear Core Propulsion Aluminum Leg Treads Light Treads Leg Aluminum Leg Utility Small Storage Unit Device Sensor Array Storage Small Storage Unit Weapon Assault Rifle Energy Gun Medium Laser Ballistic Gun Assault Rifle Launcher Grenade Launcher Build | -11 -10 -9 ------- Run | Scr Mat Mat Slots Evolved 2 | . . 2 Power . | . . . Propulsion 2 | . . 2 Utility . | . . . Weapon . | . . . Parts Attached 16 | . 3 13 Power 3 | . 1 2 Engine 2 | . . 2 Core 1 | . 1 . Reactor . | . . . Propulsion 6 | . . 6 Treads 3 | . . 3 Leg 3 | . . 3 Wheel . | . . . Hover . | . . . Flight . | . . . Utility 1 | . 1 . Device 1 | . 1 . Storage . | . . . Processor . | . . . Hackware . | . . . Protection . | . . . Artifact . | . . . Weapon 6 | . 1 5 Energy Gun 3 | . . 3 Energy Cannon . | . . . Ballistic Gun 2 | . 1 1 Ballistic Cannon . | . . . Launcher 1 | . . 1 Special Weapon . | . . . Impact Weapon . | . . . Slashing Weapon . | . . . Piercing Weapon . | . . . Special Melee Weapon . | . . . Unidentified Prototypes 1 | . . 1 Parts Lost 12 | . 3 9 Power 2 | . 1 1 Propulsion 4 | . . 4 Utility . | . . . Weapon 6 | . 2 4 Highest Loss Streak 5 | . 3 5 Average Slot Usage (%) 89 | . 92 87 Engine 7 | . 12 3 Core 2 | . 1 4 Treads 4 | . . 8 Leg 27 | . 28 27 Device 11 | . 12 11 Storage 12 | . 14 11 Energy Gun 9 | . 10 9 Ballistic Gun 10 | . 14 7 Launcher 2 | . . 5 Naked Turns . | . . . Heaviest Build 19 | 12 13 19 Greatest Support 33 | 20 20 33 Greatest Overweight (x) . | . . . Average Overweight (x) . | . . . Largest Inventory Capacity 6 | . 6 6 Average Capacity 6 | . 6 6 Most Carried 6 | . 6 6 Average Carried 4 | . 5 3 Final Capacity 6 | 6 6 6 Final Carried 6 | 6 5 3 Class Distribution -------------------- 100% | Mutant Dominant Class ---------------- Mutant | -10/Materials Mutant | -9/Materials Resources | -11 -10 -9 ----------- Run | Scr Mat Mat Matter Collected 387 | 200 63 124 Remotely . | . . . Salvage Created 558 | . 245 313 Parts 34 | . 10 24 Haulers Intercepted 1 | . . 1 Recyclers Shooed 1 | . 1 . Parts Field Recycled . | . . . Retrieved Matter . | . . . Parts Self-Destructed . | . . . Prevented . | . . . Kills | -11 -10 -9 ------- Run | Scr Mat Mat Combat Hostiles Destroyed 13 | . 4 9 Guns 9 | . 4 5 AOE 4 | . . 4 Classes Destroyed 5 | . 2 3 Hauler 1 | . . 1 Recycler 1 | . 1 . Swarmer 3 | . . 3 Grunt 7 | . 4 3 Sentry 3 | . . 3 Best Kill Streak 4 | . 4 3 Combat Bots Only 3 | . 3 3 Max Kills in Single Turn 2 | . 1 2 Gunslinging . | . . . Exploded 2 | . . 2 Melee . | . . . Uniques/NPCs Destroyed . | . . . Combat | -11 -10 -9 -------- Run | Scr Mat Mat Damage Taken 1267 | . 465 802 Core 214 | . 121 93 Absorbed by Shields . | . . . Core Remaining (%) 75 | 100 51 . Volleys Fired 49 | . 26 23 Largest 2 | . 2 2 Hottest 70 | . 70 65 Shots Fired 63 | . 33 30 Gun 57 | . 33 24 Cannon . | . . . Launcher 6 | . . 6 Special . | . . . Kinetic 42 | . 26 16 Thermal 7 | . 7 . Explosive 6 | . . 6 Electromagnetic 8 | . . 8 Robot Hit Streak 15 | . 15 10 Robot Miss Streak 2 | . 2 2 Penetration Max . | . . . Secondary Targets 1 | . 1 . Max Gunslinging Chain 1 | . 1 . Shots Hit Robots 45 | . 27 18 Core Hits 30 | . 11 19 Critical Hits 1 | . 1 . Critical Kills 1 | . 1 . Critical Parts Destroyed . | . . . Melee Attacks . | . . . Impact . | . . . Slashing . | . . . Piercing . | . . . Sneak Attacks . | . . . Combat Hostiles . | . . . Follow-up Attacks . | . . . Damage Inflicted 896 | . 293 603 Guns 550 | . 293 257 Cannons . | . . . Explosions 346 | . . 346 Melee . | . . . Ramming . | . . . Kinetic 361 | . 204 157 Thermal 89 | . 89 . Explosive 346 | . . 346 Electromagnetic 100 | . . 100 Impact . | . . . Slashing . | . . . Piercing . | . . . Highest Corruption . | . . . Average Corruption . | . . . Corruption Purged . | . . . Overload Shots . | . . . Overflow Damage 67 | . . 67 Projectiles . | . . . Explosions 67 | . . 67 Melee . | . . . Knockbacks . | . . . Impact . | . . . Kinetic . | . . . Secondary . | . . . Self-Inflicted Damage 206 | . . 206 Shots 3 | . . 3 Rammed . | . . . Targets Rammed . | . . . Kicked . | . . . Crushed . | . . . Highest Temperature 173 | . 173 2 Average Temperature 87 | . 90 1 Received Heat Transfer 426 | . 261 165 Siege Activations . | . . . Robots Corrupted . | . . . Combat Hostiles . | . . . Parts Fried . | . . . Impact Corruptions . | . . . Robots Melted . | . . . Combat Hostiles . | . . . Parts Melted 1 | . 1 . Heat Transferred 259 | . 259 . Parts Sabotaged . | . . . Parts Stolen . | . . . Parts Stripped . | . . . Power Chain Reactions . | . . . Missiles Intercepted . | . . . Alert | -11 -10 -9 ------- Run | Scr Mat Mat Peak Influence 378 | . 75 378 Initial 31 | . . 31 Average 127 | . 19 229 Maximum Alert Level 1 | . . 1 Low Security (%) 68 | . 100 39 Level 1 31 | . . 60 Level 2 . | . . . Level 3 . | . . . Level 4 . | . . . Level 5 . | . . . High Security . | . . . Max Security . | . . . Squads Dispatched 4 | . 1 3 Investigation . | . . . Extermination . | . . . Reinforcement 4 | . 1 3 Assault . | . . . Garrison . | . . . Intercept . | . . . Construction Impeded 1 | . . 1 Haulers Reinforced . | . . . Stealth | -11 -10 -9 --------- Run | Scr Mat Mat Distress Signals 2 | . . 2 Communications Jammed . | . . . Distress Signals . | . . . Times Spotted 21 | . 5 16 Peak Tracking Total 7 | . 7 7 Tactical Retreats 2 | . . 2 Traps | -11 -10 -9 ------- Run | Scr Mat Mat Traps Triggered . | . . . Indirectly . | . . . Trap Hack Attempts . | . . . Triggered . | . . . Disarmed . | . . . Reprogrammed . | . . . Reused . | . . . Traps Extracted . | . . . Installed . | . . . Triggered . | . . . Machines | -11 -10 -9 ---------- Run | Scr Mat Mat Machines Disabled 2 | . . 2 Max in Single Turn 2 | . . 2 Machines Sabotaged . | . . . Garrisons Compromised . | . . . Overloaded Fab Kills . | . . . Fab Network Shutdowns . | . . . Hacking | -11 -10 -9 --------- Run | Scr Mat Mat Machines Accessed . | . . . Terminals . | . . . Fabricators . | . . . Repair Stations . | . . . Recycling Units . | . . . Scanalyzers . | . . . Garrison Access . | . . . Total Hacks . | . . . Successful . | . . . Failed . | . . . Catastrophic . | . . . Database Lockouts . | . . . Manual . | . . . Terminals . | . . . Fabricators . | . . . Repair Stations . | . . . Recycling Units . | . . . Scanalyzers . | . . . Garrison Access . | . . . Terminal Hacks . | . . . Fabricator Hacks . | . . . Repair Station Hacks . | . . . Recycling Unit Hacks . | . . . Scanalyzer . | . . . Garrison Access Hacks . | . . . Unauthorized Hacks . | . . . Terminals . | . . . Fabricators . | . . . Repair Stations . | . . . Recycling Units . | . . . Scanalyzers . | . . . Garrison Access . | . . . Data Cores Recovered . | . . . Used . | . . . Hacking Detections . | . . . Full Trace Events . | . . . Feedback Events . | . . . Feedback Blocked . | . . . Robot Schematics Acquired . | . . . Robots Built . | . . . Matter . | . . . Time . | . . . Total Robot Build Rating . | . . . Part Schematics Acquired . | . . . Parts Built . | . . . Matter . | . . . Time . | . . . Total Part Build Rating . | . . . Parts Repaired . | . . . Time . | . . . Parts Recycled . | . . . Recycled Matter . | . . . Retrieved Matter . | . . . Retrieved Components . | . . . Parts Scanalyzed . | . . . Part Schematics Acquired . | . . . Parts Damaged . | . . . Bothacking | -11 -10 -9 ------------ Run | Scr Mat Mat Used RIF Installer . | . . . Robots Hacked . | . . . Non-combat . | . . . Combat . | . . . Robot Hacks Applied . | . . . Relay Couplers Released . | . . . Robots Rewired . | . . . Allies Hacked . | . . . Hacks Repelled . | . . . Allies | -11 -10 -9 -------- Run | Scr Mat Mat Total Allies . | . . . Largest Group . | . . . Highest-Rated Group . | . . . Highest-Rated Ally . | . . . Total Orders . | . . . Ally Attacks . | . . . Total Damage . | . . . Kills . | . . . Allies Corrupted . | . . . Allies Melted . | . . . Intel | -11 -10 -9 ------- Run | Scr Mat Mat Robot Analysis Total . | . . . Derelict Logs Recovered . | . . . Drone Launches . | . . . Drone Recoveries . | . . . Exploration | -11 -10 -9 ------------- Run | Scr Mat Mat Turns Passed 433 | . 209 224 Spaces Moved 246 | 1 122 123 Core . | . . . Treads 6 | . . 6 Legs 240 | 1 122 117 Wheels . | . . . Hover . | . . . Flight . | . . . Fastest Speed 120 | 120 120 120 Average Speed 120 | 120 120 121 Slowest Speed 160 | 120 120 160 Overloaded Moves . | . . . Propulsion Burnouts . | . . . Robots Hopped . | . . . Cave-ins Triggered . | . . . Exploration Rate (%) 21 | 2 37 25 Regions Visited 2 Branch Regions . Pre-discovered Areas . | . . . Known Exits Taken . | . . . Unknown Exits Taken 2 | 1 1 . Scrap Searched . | . . . Spaces Dug 5 | . . 5 Terrain Destroyed 73 | . . 73 Melee . | . . . Projectile . | . . . AOE 73 | . . 73 Terrain Rammed . | . . . Walls Destroyed . | . . . Machines Disabled . | . . . Actions | -11 -10 -9 --------- Run | Scr Mat Mat Total 320 | . 155 165 Wait . | . . . Move 244 | . 121 123 Hop . | . . . Pick Up 8 | . 3 5 Fast Attach 2 | . 1 1 Attach 10 | . 2 8 Detach . | . . . Swap 4 | . . 4 Drop 3 | . 2 1 Fire 49 | . 26 23 Melee . | . . . Ram . | . . . Kick . | . . . Crush . | . . . Escape Stasis . | . . . Rewire . | . . . Trap . | . . . Miscellaneous . | . . . Route ------- -11/Scrapyard -10/Materials -9/Materials History --------- Turn | Location | Event 1 | -11/Scrapyard | Discovered new exit (range 0) 1 | -11/Scrapyard | Entered Materials 118 | -10/Materials | Discovered new exit (range 6) 210 | -10/Materials | Entered another Materials area 210 | -9/Materials | Evolved 2 slots: Propulsion x2 220 | -9/Materials | Lost 3 parts (1p2w) 324 | -9/Materials | Build established: Mutant 369 | -9/Materials | Lost 5 parts (1p2n2w) 434 | -9/Materials | Self-destructed Last Messages --------------- 00331_ O-16 Technician: "IFF HANDSHAKE FAILED. SECURING TERMINAL." 00336_ ALERT: Hostiles spotted, dispatching reinforcements to Terminal M003. 00338_ Aluminum Leg destroyed. 00341_ The unstable cave ceiling collapses. 00344_ Y-45 Defender destroyed. 00347_ The unstable cave ceiling collapses. 00399_ W-16 Scout sends out distress signal. 00405_ Acquired Imp. Terrain Scanner. 00411_ Y-45 Defender destroyed. 00413_ R-06 Scavenger collects Heat Sink. 00416_ R-06 Scavenger collects Hvy. Assault Rifle. 00419_ W-16 Scout sends out distress signal. 00419_ R-06 Scavenger collects Lgt. Treads. 00423_ Destroyed Tractor Beam. 00426_ Acquired 60 matter. 00429_ Acquired Lgt. Treads. 00433_ Assault Rifle destroyed. 00433_ Imp. EM Shotgun destroyed. 00433_ Aluminum Leg destroyed. Map ----- +----------------------------------------------------+ | ??????????????????? """ # +???????????????? | | ??????????????????# """ # #???????????????? | | ??????????????????# + #???????????????? | | ??????????????????# """ # #???????????????? | | ??????????????????? """ # ##########??????? | | ??????????????????# """ # # #??????? | | ??????????????????# + / T """ ???????? | | ???????????????????+########## # """ ???????? | | ?????????????????????????????# # """ ???????? | | ?????????????????????????????# #? #??????? | | ?????????????????????????????# #? """ #??????? | | ?????????????????????????????# #?? """ #??????? | | ?????????????????????????????# #?? """ ???????? | | ?????????????????????????????# #??? ????????? | | ????????????????????????######+###?####????????? | | ????????????????????????# #?????????????? | | ????????????????????????+ """ #?????????????? | | ????????????????????????# "T" #?????????????? | | ????????????????????????# #?????????????? | | ????????????????????????# #?????????????? | | ????????????????????????# """ #?????????????? | | ????????????????????????# """ #?????? ????? | | ????????????????????????# """ #???? ???? | | ?????????????????????##?# #?? #?? | | ????????????????????## #######?### #?? | | ????????????????????# l@ *+ ""T??????? | | ????????????????????# "" % # """??????? | | ??????????????????# # "Y + ??? | | ??????????????????# gg"" ####### ??? | | ??????????????????# # kw[ #??????##+##### ??? | | ??????????????????# #[ |!#???????????????????? | | ?????????????????? ?########???????????????????? | | ?????????????????#?????????????????????????????? | | ???????????????????????????????????????????????? | | ???????????????????????????????????????????????? | | ???????????????????????????????????????????????? | | ???????????????????????????????????????????????? | | ???????????????????????????????????????????????? | | ???????????????????????????????????????????????? | | ???????????????????????????????????????????????? | | ???????????????????????????????????????????????? | | ???????????????????????????????????????????????? | | ???????????????????????????????????????????????? | | ???????????????????????????????????????????????? | | ???????????????????????????????????????????????? | | ???????????????????????????????????????????????? | | ???????????????????????????????????????????????? | | ???????????????????????????????????????????????? | | ???????????????????????????????????????????????? | | ???????????????????????????????????????????????? | +----------------------------------------------------+ Best States ------------- Heat Dissipation 28 Energy Generation 14 Energy Capacity 275 Matter Stores 300 Matter Capacity 300 Sight Range 16 Robot Scan Range 10 Terrain Scan Density 10 Evasion (%) 40 Recoil Reduction 2 Item Schematics ----------------- None Robot Schematics ------------------ None Fabricated ------------ Nothing Alien Tech Used ----------------- None Achievements -------------- None Challenges ------------ None Game ------ Seed CoordinationHackingEngine Manual? 0 Play Time 00:08:26 Cumulative 64.2 hours Start 2022.03.01 @ 03:25:20 End 2022.03.01 @ 03:32:41 Sessions 1 Manual Loads 0 Difficulty Rogue Special Mode None Game No. 81 Rogue 35 Adventurer 45 Explorer 1 Win Type - Total 0 Types 0/0/0/0/0/0/0/0/0 Lore% 23 Gallery% 44 Achievement% 28 Wizard Run 0 Options --------- ASCII 0 Keyboard 0 Movement Mouse Keybinds 0 Fullscreen 2 Font 16/Proggy Map View 76x50 Tactical HUD 1 Map Filters NONE Filters LOW_CONTRAST(13,24,33)|BRIGHTNESS(90)|SATURATION(87) Steam 1 RUN: 717325c3-796c-4b31-ac38-6dad3810c97e